Cogmind - Beta 10.2 @@@ ROGUE MODE // 2021.07.19 @ 09:10:32 Player: Demise Result: Destroyed by 8R-AWN with 8R-AWN's Boregun Performance ------------- Evolutions (0) 0 Regions Visited (3) 600 Robots Destroyed (54) 270 Value Destroyed (805) 805 Prototype IDs (40) 800 Alien Tech Used (0) 0 Bonus (194) 194 TOTAL SCORE: 2669 Bonus ------- Follower Combat Kills 60 Aligned with FarCom 300 Friendly Fire -166 Cogmind --------- Core Integrity 0/250 Matter 290/300 Energy 100/100 System Corruption 0% Temperature Cool (0) Movement Core (1400) Ox27 Location -10/Exiles Parts ------- > --- POWER (1) -------- (None) > --- PROPULSION (2) --- (None) > --- UTILITY (2) ------ Humpback > --- WEAPON (2) ------- Mining Claw > --- INVENTORY (24) --- Lightpack 2.0 Modified TNC Skeleton Box Bomb Drone Bay EM Pulse Gun Light Assault Rifle Light Assault Rifle Light Assault Rifle Grenade Launcher Datajack Peak State ------------ > --- POWER ------------ Light Ion Engine > --- PROPULSION ------- Light Treads Light Treads > --- UTILITY ---------- Humpback > --- WEAPON ----------- Light Assault Rifle Datajack > --- INVENTORY -------- Fission Core Light Fission Core Lightpack 2.0 Modified TNC Skeleton Box Bomb Drone Bay EM Pulse Gun Light Assault Rifle Light Assault Rifle Grenade Launcher Mining Claw Mining Claw [Rating: 13] Favorites ----------- Power Light Ion Engine Engine Light Ion Engine Power Core Light Nuclear Core Propulsion Light Treads Treads Light Treads Utility Medium Storage Unit Storage Medium Storage Unit Weapon Light Assault Rifle Energy Gun EM Pulse Gun Ballistic Gun Light Assault Rifle Launcher Grenade Launcher Special Weapon Mining Laser Slashing Weapon Mining Claw Special Melee Weapon Datajack Build | -11 -10 -10 -10 ------- Run | Scr Mat Min Exi Slots Evolved . | . . . . Power . | . . . . Propulsion . | . . . . Utility . | . . . . Weapon . | . . . . Parts Attached 57 | 7 37 7 6 Power 5 | 1 2 2 . Engine 4 | 1 2 1 . Core 1 | . . 1 . Reactor . | . . . . Propulsion 8 | 2 6 . . Treads 8 | 2 6 . . Leg . | . . . . Wheel . | . . . . Hover . | . . . . Flight . | . . . . Utility 5 | 1 2 1 1 Device . | . . . . Storage 5 | 1 2 1 1 Processor . | . . . . Hackware . | . . . . Protection . | . . . . Artifact . | . . . . Weapon 39 | 3 27 4 5 Energy Gun 5 | 2 2 . 1 Energy Cannon . | . . . . Ballistic Gun 19 | 1 15 3 . Ballistic Cannon . | . . . . Launcher 6 | . 4 1 1 Special Weapon 3 | . 3 . . Impact Weapon . | . . . . Slashing Weapon 4 | . 2 . 2 Piercing Weapon . | . . . . Special Melee Weapon 2 | . 1 . 1 Unidentified Prototypes . | . . . . Parts Lost 6 | . . 2 4 Power 3 | . . 2 1 Propulsion 2 | . . . 2 Utility . | . . . . Weapon 1 | . . . 1 Highest Loss Streak 4 | . . 1 4 Average Slot Usage (%) 89 | . 88 95 84 Engine 6 | . 6 1 13 Core 2 | . . 8 . Treads 27 | . 27 28 26 Storage 23 | . 25 28 15 Energy Gun 3 | . 5 . 1 Ballistic Gun 20 | . 20 28 12 Special Melee Weapon 3 | . . . 11 Naked Turns . | . . . . Heaviest Build 88 | 8 20 21 88 Greatest Support 40 | 40 40 40 40 Greatest Overweight (x) 4 | 1 4 . 2 Average Overweight (x) . | . . . 1 Largest Inventory Capacity 24 | 6 10 12 24 Average Capacity 12 | 4 9 10 22 Most Carried 18 | 4 10 12 18 Average Carried 10 | 2 9 10 12 Final Capacity 24 | 4 10 12 24 Final Carried 12 | 4 10 12 12 Class Distribution -------------------- 44% | Scavenger-Mutant 32% | Mutant 22% | Hauler-Mutant Dominant Class ---------------- Mutant | -10/Materials Scavenger-Mutant | -10/Mines Hauler-Mutant | -10/Exiles Resources | -11 -10 -10 -10 ----------- Run | Scr Mat Min Exi Matter Collected 1315 | 352 685 188 90 Remotely . | . . . . Salvage Created 1378 | 195 733 436 14 Parts 112 | 17 68 27 . Haulers Intercepted 2 | . 2 . . Recyclers Shooed . | . . . . Parts Field Recycled . | . . . . Retrieved Matter . | . . . . Parts Self-Destructed . | . . . . Prevented . | . . . . Kills | -11 -10 -10 -10 ------- Run | Scr Mat Min Exi Combat Hostiles Destroyed 30 | . 17 10 3 Guns 13 | . 5 8 . AOE 16 | . 11 2 3 Classes Destroyed 10 | 3 6 . 1 Worker 4 | 2 2 . . Builder 4 | . 4 . . Tunneler 7 | 4 . 3 . Hauler 2 | . 2 . . Recycler 3 | 1 1 1 . Operator 3 | . 3 . . Watcher 3 | . 3 . . Swarmer 15 | . 9 6 . Grunt 12 | . 8 4 . Assembled 3 | . . . 3 Thug 1 | . . 1 . Best Kill Streak 5 | 5 5 5 3 Combat Bots Only 5 | . 3 5 3 Max Kills in Single Turn 3 | 1 3 1 1 Gunslinging . | . . . . Exploded 2 | . 2 1 1 Melee . | . . . . Uniques/NPCs Destroyed . | . . . . Combat | -11 -10 -10 -10 -------- Run | Scr Mat Min Exi Damage Taken 1433 | 37 362 434 600 Core 262 | . 91 70 101 Absorbed by Shields . | . . . . Core Remaining (%) 100 | 100 . . . Volleys Fired 127 | 13 65 42 7 Largest 2 | 2 2 2 1 Hottest 120 | 90 120 40 40 Shots Fired 230 | 25 117 81 7 Gun 207 | 25 103 78 1 Cannon . | . . . . Launcher 18 | . 9 3 6 Special 5 | . 5 . . Kinetic 166 | 10 78 78 . Thermal 8 | 3 5 . . Explosive 18 | . 9 3 6 Electromagnetic 38 | 12 25 . 1 Robot Hit Streak 17 | 7 17 9 . Robot Miss Streak 6 | 3 6 2 . Penetration Max . | . . . . Secondary Targets 3 | . . 3 . Max Gunslinging Chain 1 | . . 1 . Shots Hit Robots 158 | 13 69 59 17 Core Hits 88 | 9 42 31 6 Critical Hits 2 | . . 2 . Critical Kills 1 | . . 1 . Critical Parts Destroyed 1 | . . 1 . Melee Attacks 31 | . 7 . 24 Impact . | . . . . Slashing 27 | . 7 . 20 Piercing . | . . . . Sneak Attacks 4 | . . . 4 Combat Hostiles . | . . . . Follow-up Attacks 1 | . . . 1 Damage Inflicted 3051 | 256 1641 639 515 Guns 1286 | 167 644 475 . Cannons . | . . . . Explosions 1463 | 89 997 164 213 Melee 302 | . . . 302 Ramming . | . . . . Kinetic 851 | 24 352 475 . Thermal 367 | 115 252 . . Explosive 1095 | . 718 164 213 Electromagnetic 436 | 117 319 . . Impact . | . . . . Slashing 302 | . . . 302 Piercing . | . . . . Highest Corruption . | . . . . Average Corruption . | . . . . Corruption Purged . | . . . . Overload Shots . | . . . . Overflow Damage 45 | 2 41 2 . Projectiles . | . . . . Explosions 45 | 2 41 2 . Melee . | . . . . Knockbacks . | . . . . Impact . | . . . . Kinetic . | . . . . Secondary . | . . . . Self-Inflicted Damage 120 | 37 83 . . Shots 3 | 1 2 . . Rammed . | . . . . Targets Rammed . | . . . . Kicked . | . . . . Crushed . | . . . . Highest Temperature 32 | 32 30 29 . Average Temperature 10 | 11 10 9 . Received Heat Transfer 252 | . 102 150 . Siege Activations . | . . . . Robots Corrupted 1 | . 1 . . Combat Hostiles 1 | . 1 . . Parts Fried 1 | . 1 . . Impact Corruptions . | . . . . Robots Melted . | . . . . Combat Hostiles . | . . . . Parts Melted 1 | . 1 . . Heat Transferred 474 | 174 300 . . Parts Sabotaged . | . . . . Parts Stolen . | . . . . Parts Stripped . | . . . . Power Chain Reactions 6 | 2 4 . . Missiles Intercepted . | . . . . Alert | -11 -10 -10 -10 ------- Run | Scr Mat Min Exi Peak Influence 338 | 35 238 338 . Initial 75 | . 22 75 . Average 121 | 15 117 141 . Maximum Alert Level 1 | . 1 1 . Low Security (%) 75 | 100 78 67 . Level 1 24 | . 21 32 . Level 2 . | . . . . Level 3 . | . . . . Level 4 . | . . . . Level 5 . | . . . . High Security . | . . . . Max Security . | . . . . Squads Dispatched 7 | . 6 1 . Investigation 5 | . 4 1 . Extermination . | . . . . Reinforcement 2 | . 2 . . Assault . | . . . . Garrison . | . . . . Intercept . | . . . . Construction Impeded . | . . . . Haulers Reinforced . | . . . . Stealth | -11 -10 -10 -10 --------- Run | Scr Mat Min Exi Distress Signals . | . . . . Communications Jammed . | . . . . Distress Signals . | . . . . Times Spotted 56 | . 39 11 6 Peak Tracking Total 9 | . 4 3 9 Tactical Retreats 2 | . 2 . . Traps | -11 -10 -10 -10 ------- Run | Scr Mat Min Exi Traps Triggered 2 | . 2 . . Indirectly . | . . . . Trap Hack Attempts . | . . . . Triggered . | . . . . Disarmed . | . . . . Reprogrammed . | . . . . Reused . | . . . . Traps Extracted . | . . . . Installed . | . . . . Triggered 2 | . 2 . . Exploded 3 | . . . 3 Machines | -11 -10 -10 -10 ---------- Run | Scr Mat Min Exi Machines Disabled 7 | . 3 . 4 Max in Single Turn 2 | . 2 . 2 Machines Sabotaged . | . . . . Garrisons Compromised . | . . . . Overloaded Fab Kills . | . . . . Fab Network Shutdowns . | . . . . Hacking | -11 -10 -10 -10 --------- Run | Scr Mat Min Exi Machines Accessed 13 | . 9 2 2 Terminals 6 | . 6 . . Fabricators . | . . . . Repair Stations 1 | . 1 . . Recycling Units 2 | . 2 . . Scanalyzers . | . . . . Garrison Access . | . . . . Total Hacks 40 | . 36 2 2 Successful 27 | . 23 2 2 Failed 12 | . 12 . . Catastrophic 2 | . 2 . . Database Lockouts 1 | . 1 . . Manual 22 | . 21 . 1 Terminals 23 | . 23 . . Fabricators . | . . . . Repair Stations 8 | . 8 . . Recycling Units 5 | . 5 . . Scanalyzers . | . . . . Garrison Access . | . . . . Terminal Hacks 9 | . 5 2 2 Record 1 | . . . 1 Robot Analysis 2 | . 2 . . Prototype ID Bank 2 | . 2 . . Open Door 2 | . . 2 . Terminal Index 1 | . 1 . . EX-Prototype ID Bank 1 | . . . 1 Fabricator Hacks . | . . . . Repair Station Hacks 6 | . 6 . . Scan Component 3 | . 3 . . Repair 3 | . 3 . . Recycling Unit Hacks 2 | . 2 . . Retrieve Components 2 | . 2 . . Scanalyzer . | . . . . Garrison Access Hacks . | . . . . Unauthorized Hacks 10 | . 10 . . Terminals 7 | . 7 . . Assimilate 1 | . 1 . . Botnet 5 | . 5 . . Operators 1 | . 1 . . Fabricators . | . . . . Repair Stations . | . . . . Recycling Units 3 | . 3 . . Recyclers 1 | . 1 . . Mask 1 | . 1 . . Tunnel 1 | . 1 . . Scanalyzers . | . . . . Garrison Access . | . . . . Data Cores Recovered . | . . . . Used . | . . . . Hacking Detections 9 | . 9 . . Full Trace Events 5 | . 5 . . Feedback Events . | . . . . Feedback Blocked . | . . . . Robot Schematics Acquired . | . . . . Robots Built . | . . . . Matter . | . . . . Time . | . . . . Total Robot Build Rating . | . . . . Part Schematics Acquired . | . . . . Parts Built . | . . . . Matter . | . . . . Time . | . . . . Total Part Build Rating . | . . . . Parts Repaired 3 | . 3 . . Time 78 | . 78 . . Parts Recycled . | . . . . Recycled Matter . | . . . . Retrieved Matter . | . . . . Retrieved Components 6 | . 6 . . Parts Scanalyzed . | . . . . Part Schematics Acquired . | . . . . Parts Damaged . | . . . . Bothacking | -11 -10 -10 -10 ------------ Run | Scr Mat Min Exi Used RIF Installer . | . . . . Robots Hacked 4 | . . . 4 Non-combat 3 | . . . 3 Combat 1 | . . . 1 Robot Hacks Applied 4 | . . . 4 parse_system 4 | . . . 4 Relay Couplers Released . | . . . . Robots Rewired . | . . . . Allies Hacked . | . . . . Hacks Repelled . | . . . . Allies | -11 -10 -10 -10 -------- Run | Scr Mat Min Exi Total Allies 3 | . . 3 . Largest Group 3 | . . 3 . Highest-Rated Group 71 | . . 71 . Highest-Rated Ally 31 | . . 31 . Total Orders . | . . . . Ally Attacks 9 | . . 9 . Total Damage 147 | . . 147 . Kills 2 | . . 2 . Allies Corrupted . | . . . . Allies Melted . | . . . . Intel | -11 -10 -10 -10 ------- Run | Scr Mat Min Exi Robot Analysis Total 2 | . 2 . . Derelict Logs Recovered 1 | . . 1 . Drone Launches . | . . . . Drone Recoveries . | . . . . Exploration | -11 -10 -10 -10 ------------- Run | Scr Mat Min Exi Turns Passed 4305 | 118 1977 1113 1097 Spaces Moved 2212 | 76 1011 619 506 Core 287 | 67 220 . . Treads 1925 | 9 791 619 506 Legs . | . . . . Wheels . | . . . . Hover . | . . . . Flight . | . . . . Fastest Speed 50 | 50 50 160 160 Average Speed 161 | 63 154 160 193 Slowest Speed 250 | 160 250 160 200 Overloaded Moves . | . . . . Propulsion Burnouts . | . . . . Robots Hopped . | . . . . Cave-ins Triggered . | . . . . Exploration Rate (%) 67 | 4 98 95 71 Regions Visited 3 Branch Regions 2 Pre-discovered Areas 2 | . 1 . 1 Known Exits Taken . | . . . . Unknown Exits Taken 3 | 1 1 1 . Scrap Searched 2 | . . 2 . Spaces Dug 27 | . 11 16 . Terrain Destroyed 133 | 4 82 23 24 Melee 5 | . 5 . . Projectile . | . . . . AOE 128 | 4 77 23 24 Terrain Rammed . | . . . . Walls Destroyed . | . . . . Machines Disabled . | . . . . Actions | -11 -10 -10 -10 --------- Run | Scr Mat Min Exi Total 2677 | 121 1300 677 579 Wait 173 | 17 147 4 5 Move 2209 | 75 1010 618 506 Hop . | . . . . Pick Up 43 | 4 18 2 19 Fast Attach 18 | 6 9 2 1 Attach 4 | 1 3 . . Detach 4 | 3 1 . . Swap 35 | . 25 5 5 Drop 35 | 2 15 4 14 Fire 127 | 13 65 42 7 Melee 29 | . 7 . 22 Ram . | . . . . Kick . | . . . . Crush . | . . . . Escape Stasis . | . . . . Rewire . | . . . . Trap . | . . . . Miscellaneous . | . . . . Route ------- -11/Scrapyard -10/Materials (discovered 4 exits: [*Mat x3] / *Min) -10/Mines (discovered 3 exits: [*Mat x2] / *Exi) -10/Exiles (discovered 1 exit: [*Min]) History --------- Turn | Location | Event 7 | -11/Scrapyard | Discovered new exit (range 16) 119 | -11/Scrapyard | Entered Materials 131 | -10/Materials | Discovered new exit (range 6) 223 | -10/Materials | Discovered new exit (range 13) 323 | -10/Materials | Build established: Mutant 712 | -10/Materials | Discovered new exit (range 6) 1190 | -10/Materials | Discovered new exit (range 3) 1294 | -10/Materials | Repaired Lgt. Treads 1321 | -10/Materials | Repaired Lgt. Assault Rifle 1367 | -10/Materials | Repaired Lgt. Assault Rifle 1670 | -10/Materials | Central database locked down 1674 | -10/Materials | Build established: Scavenger-Mutant 2096 | -10/Materials | Entered Mines 2143 | -10/Mines | Learned Materials garrison access intel 2156 | -10/Mines | Discovered new exit (range 9) 2194 | -10/Mines | Discovered new exit (range 5) 2245 | -10/Mines | Assembled infested the area 2263 | -10/Mines | Core integrity fell below 50% 2446 | -10/Mines | Met a Derelict shopkeep closing up shop 2477 | -10/Mines | Received a Mining Laser from a helpful Derelict 2483 | -10/Mines | Discovered new exit (range 7) 2993 | -10/Mines | Found the Drone Emporium 3005 | -10/Mines | Found Prototype Device 3209 | -10/Mines | Entered Exiles 3249 | -10/Exiles | Met 8R-AWN 3280 | -10/Exiles | Met EX-HEX 3428 | -10/Exiles | Met EX-DEC 3488 | -10/Exiles | Learned location of Zion (-6) 3567 | -10/Exiles | Discovered new exit (range 12) 3653 | -10/Exiles | Build established: Hauler-Mutant 3721 | -10/Exiles | Met EX-BIN 3751 | -10/Exiles | Aligned with FarCom system 3753 | -10/Exiles | Given EX-Vault access code 3801 | -10/Exiles | Opened EX-Vault 3813 | -10/Exiles | Found Skeleton Box 3818 | -10/Exiles | Found Modified TNC 3821 | -10/Exiles | Found Lightpack 2.0 3860 | -10/Exiles | Warned to stay clear of 0b10 Research branches 4167 | -10/Exiles | Attacked by the Exiles 4286 | -10/Exiles | Core integrity fell below 20% 4306 | -10/Exiles | Destroyed by 8R-AWN with 8R-AWN's Boregun Last Messages --------------- 04282_ Penetrated by HV Slug. 04282_ HV Slug penetrates Wall. 04283_ Penetrated by HV Slug. 04283_ HV Slug penetrates Wall. 04285_ Penetrated by HV Slug. 04285_ HV Slug penetrates Wall. 04286_ Penetrated by HV Slug. 04286_ HV Slug penetrates Wall. 04288_ Penetrated by HV Slug. 04291_ The unstable cave ceiling collapses. 04291_ Penetrated by HV Slug. 04291_ HV Slug penetrates Earth. 04292_ Penetrated by HV Slug. 04292_ HV Slug penetrates Earth. 04294_ Penetrated by HV Slug. 04294_ HV Slug penetrates Earth. 04295_ Penetrated by HV Slug. 04301_ HV Slug penetrates Wall. 04303_ HV Slug penetrates Machine. 04304_ Penetrated by HV Slug. Map ----- +----------------------------------------------------+ | ?????????????????????????????????????????????????? | | ?????????????????????????????????????????????????? | | ?????????????????????????????????????????????????? | | ?????????????????????????????????????????????????? | | ?????????????????????????????????????????????????? | | ?????????????????????????????????????????????????? | | ?????????????????????????????????????????????????? | | ?????????????????????????????????????????????????? | | ?????????????????????????????????????????????????? | | ???????????????????????????????????????????????### | | ??????????????????????????????????????????????"""" | | #####?????????????????????????????????????????"""" | | # !!##???????????????????????????????????????#""X" | | #???????????????????????????????????????#" | | < #???????????????????????????????????????#" | | ###?????????????????????????????????????#"""" | | ! #?????????????????????????????????????##"## | | ! !!##?????????????????????????????????????????? | | # ! #??????????????????????????????????????????? | | # ##?????????????????????????????????????????? | | ## #????????????#######??????????????????????? | | ?# #######??????#!!! "#??????????????????????? | | ?# #""##?????# "#??????????????????????? | | ?## #?????# "#??????????????????????? | | ??##" ##???## "g#?????????????#????????? | | ??#"" #####" @#???????????? """?????? | | ??#### ##" #????????????" """#????? | | ?????## #"" #;#????????????" #????? | | ??????#"## ; #####???????"" #????? | | ??????####### #???????"" "#????? | | ????????????### # #?????? ""?????? | | ??????########"! # #???????" "??????? | | ??????# !!"""""! #???????# #??????? | | ??????#! ### # ###???### ###?#### | | ??????#! #?# " #####X# #"###""" | | ??????#! ##?##" """""" | | ??????# !""""""###???#"# % "" """ | | ??????##########?????#### % " | | ????????????????????????#;# | | ????????????????????????? #"" | | ????????????????????????? ??## | | ?????????????????????????????## | | ??????????????????????????????##" | | ???????????????????????????????#""" | | ??????????????????????????????##" | | ??????????????????????????????#"" ""# | | ?????????????????????????????##""" """## | | ?????????????????????????????#""" """##? | | ?????????????????????????????#""" ""#?? | | ?????????????????????????????#"" #### | +----------------------------------------------------+ Best States ------------- Heat Dissipation 25 Energy Generation 14 Energy Capacity 250 Matter Stores 300 Matter Capacity 300 Sight Range 16 Terrain Scan Density 10 Evasion (%) 50 Recoil Reduction 2 Item Schematics ----------------- None Robot Schematics ------------------ None Fabricated ------------ Nothing Alien Tech Used ----------------- None Achievements -------------- None Challenges ------------ None Game ------ Seed VisualAlertCorpse Manual? 0 Play Time 00:29:38 Cumulative 403.5 hours Start 2021.07.19 @ 08:44:49 End 2021.07.19 @ 09:10:32 Sessions 1 Manual Loads 0 Difficulty Rogue Special Mode None Game No. 331 Rogue 331 Adventurer 0 Explorer 0 Win Type - Total 1 Types 0/0/0/1/0/0/0/0/0 Lore% 71 Gallery% 80 Achievement% 60 Wizard Run 0 Options --------- ASCII 0 Keyboard 1 Movement Numpad Keybinds 0 Fullscreen 1 Font 12/Terminus Map View 83x54 Tactical HUD 1 Map Filters NONE Filters NONE Steam 1 RUN: f31aa430-0d01-42a7-89ed-9753a8d0e670